fUST/lending_fUST_20240613
["ID","MTS","AMOUNT","RATE_DAILY","PERIOD"]
[329293863,1718220659801,-670.62,0.0001863,2]
[329293864,1718220659812,-500.0,0.0001863,2]
[329293865,1718220659822,-500.0,0.0001863,2]
[329293866,1718220659833,-500.0,0.0001863,2]
[329293867,1718220659844,-773.41,0.0001863,2]
[329293868,1718220659854,-570.81,0.0001863,2]
[329293869,1718220659866,-901.43,0.0001863,2]
[329293870,1718220659876,-500.0,0.0001863,2]
[329293871,1718220659886,-500.0,0.0001863,2]
[329293872,1718220659913,-500.0,0.0001863,2]
[329293873,1718220659923,-500.0,0.0001863,2]
[329293874,1718220659933,-576.55,0.0001863,2]
[329293875,1718220659947,-744.83,0.0001863,2]
[329293876,1718220659957,-1399.88,0.0001863,2]
[329293877,1718220659967,-711.69,0.0001863,2]
[329293878,1718220659978,-1144.53,0.0001863,2]
[329293879,1718220659996,-3420.82,0.0001863,2]
[329293880,1718220660008,-4199.95,0.0001863,2]
[329293881,1718220660040,-500.0,0.0001863,2]
[329293882,1718220660053,-750.65,0.0001863,2]
[329293883,1718220660063,-584.03,0.0001863,2]
[329293884,1718220660073,-484.08,0.0001863,2]
[329293885,1718220660085,-1030.83,0.0001863,2]
[329293886,1718220660118,-500.0,0.0001863,2]
[329293887,1718220660128,-4482.52,0.0001863,2]
[329293888,1718220660152,-500.0,0.0001863,2]
[329293889,1718220660163,-443.31823412,0.0001863,2]
[329293890,1718220660174,-1924.46,0.0001863,2]
[329293891,1718220660196,-500.0,0.0001863,2]
[329293892,1718220660207,-2553.46,0.0001863,2]
[329293893,1718220660216,-7018.01,0.0001863,2]
[329293894,1718220660232,-500.0,0.0001863,2]
[329293895,1718220660248,-500.0,0.0001863,2]
[329293896,1718220660258,-500.0,0.0001863,2]
[329293897,1718220660271,-702.6,0.0001863,2]
[329293898,1718220660283,-821.16,0.0001863,2]
[329293899,1718220660293,-500.0,0.0001863,2]
[329293900,1718220660306,-293.95,0.0001863,2]
[329293901,1718220660320,-500.0,0.0001863,2]
[329293902,1718220660331,-500.0,0.0001863,2]
[329293903,1718220660345,-5404.03,0.0001863,2]
[329293904,1718220660357,-500.0,0.0001863,2]
[329293905,1718220660369,-797.6,0.0001863,2]
[329293906,1718220660396,-511.04,0.0001863,2]
[329293907,1718220660420,-1096.22,0.0001863,2]
[329293908,1718220660454,-1703.96,0.0001863,2]
[329293909,1718220660469,-500.0,0.0001863,2]
[329293910,1718220660481,-744.68,0.0001863,2]
[329293911,1718220660492,-614.12,0.0001863,2]
[329293912,1718220660508,-500.0,0.0001863,2]
[329293913,1718220660529,-1404.54,0.0001863,2]
[329293914,1718220660546,-500.0,0.0001863,2]
[329293915,1718220660557,-500.0,0.0001863,2]
[329293916,1718220660568,-500.0,0.0001863,2]
[329293917,1718220660580,-582.09,0.0001863,2]
[329293918,1718220660591,-250.0,0.0001863,2]
[329293919,1718220660601,-155.0,0.000187,2]
[329293920,1718220660612,-151.0,0.00018714,2]
[329293921,1718220660658,-500.0,0.00018899,2]
[329293922,1718220660675,-543.46,0.00018899,2]
[329293923,1718220660687,-2162.66811295,0.000189,2]
[329293924,1718220660697,-4211.71503677,0.000189,2]
[329293925,1718220660712,-543.46,0.00018903,2]
[329293926,1718220660724,-500.0,0.00018904,2]
[329293927,1718220660736,-500.0,0.00018904,2]
[329293928,1718220660754,-547.61,0.00018904,2]
[329293929,1718220660765,-526.48,0.00018904,2]
[329293930,1718220660782,-500.0,0.00018904,2]
[329293931,1718220660794,-521.33,0.00018904,2]
[329293932,1718220660807,-670.62,0.00018904,2]
[329293933,1718220660848,-500.0,0.00018904,2]
[329293934,1718220660858,-773.41,0.00018904,2]
[329293935,1718220660869,-570.81,0.00018904,2]
[329293936,1718220660886,-901.43,0.00018904,2]
[329293937,1718220660918,-500.0,0.00018904,2]
[329293938,1718220660929,-500.0,0.00018904,2]
[329293939,1718220660941,-500.0,0.00018904,2]
[329293940,1718220660951,-576.55,0.00018904,2]
[329293941,1718220660963,-744.83,0.00018904,2]
[329293942,1718220660973,-1399.88,0.00018904,2]
[329293943,1718220660984,-711.69,0.00018904,2]
[329293944,1718220660996,-1144.53,0.00018904,2]
[329293945,1718220661007,-3420.82,0.00018904,2]
[329293946,1718220661027,-4199.95,0.00018904,2]
[329293947,1718220661047,-500.0,0.00018904,2]
[329293948,1718220661065,-750.65,0.00018904,2]
[329293949,1718220661086,-584.03,0.00018904,2]
[329293950,1718220661098,-1030.83,0.00018904,2]
[329293951,1718220661113,-4482.52,0.00018904,2]
[329293952,1718220661128,-500.0,0.00018904,2]
[329293953,1718220661143,-1924.46,0.00018904,2]
[329293954,1718220661180,-500.0,0.00018904,2]
[329293955,1718220661198,-2553.46,0.00018904,2]
[329293956,1718220661209,-7018.01,0.00018904,2]
[329293957,1718220661222,-555.64,0.00018904,2]
[329293958,1718220661237,-500.0,0.00018904,2]
[329293959,1718220661262,-500.0,0.00018904,2]
[329293960,1718220661277,-702.6,0.00018904,2]
[329293961,1718220661290,-821.16,0.00018904,2]
[329293962,1718220661303,-500.0,0.00018904,2]
[329293963,1718220661316,-500.0,0.00018904,2]
[329293964,1718220661327,-500.0,0.00018904,2]
[329293965,1718220661339,-5404.03,0.00018904,2]
[329293966,1718220661350,-500.0,0.00018904,2]
[329293967,1718220661361,-797.6,0.00018904,2]
[329293968,1718220661372,-511.04,0.00018904,2]
[329293969,1718220661383,-1096.22,0.00018904,2]
[329293970,1718220661397,-1703.96,0.00018904,2]
[329293971,1718220661409,-500.0,0.00018904,2]
[329293972,1718220661527,-744.68,0.00018904,2]
[329293973,1718220661539,-614.12,0.00018904,2]
[329293974,1718220661550,-1404.54,0.00018904,2]
[329293975,1718220661561,-500.0,0.00018904,2]
[329293976,1718220661572,-500.0,0.00018904,2]
[329293977,1718220661583,-361.57295176,0.00018904,2]
[329293978,1718220661593,-582.09,0.00018904,2]
[329293979,1718220661603,-151.0,0.00018928,2]
[329293980,1718220661614,-500.0,0.00018999,2]
[329293981,1718220661624,-163.14541634,0.00019,2]
[329293982,1718220661635,-7270.73643792,0.00019,2]
[329293983,1718220661652,-812.16299288,0.00019,2]
[329293984,1718220661665,-1400.0,0.000191,2]
[329293985,1718220661679,-800.0,0.000191,3]
[329293986,1718220661691,-151.0,0.00019143,2]
[329293987,1718220661703,-543.46,0.00019177,2]
[329293988,1718220661714,-543.46,0.00019177,2]
[329293989,1718220661725,-543.46,0.00019177,2]
[329293990,1718220661736,-543.46,0.00019177,2]
[329293991,1718220661748,-543.46,0.00019177,2]
[329293992,1718220661760,-543.5,0.00019177,2]
[329293993,1718220661770,-480.59517794,0.00019178,2]
[329293994,1718220661781,-500.0,0.00019178,2]
[329293995,1718220661791,-500.0,0.00019178,2]
[329293996,1718220661801,-214.13018632,0.00019178,2]
[329293997,1718220661811,-268.86218508,0.00019178,2]
[329293998,1718220661821,-500.0,0.00019178,2]
[329293999,1718220661832,-273.34627441,0.00019178,2]
[329294000,1718220661842,-243.21101369,0.00019178,2]
[329294001,1718220661853,-500.0,0.00019178,2]
[329294002,1718220661863,-500.0,0.00019178,2]
[329294003,1718220661874,-500.0,0.00019178,2]
[329294004,1718220661885,-500.0,0.00019178,2]
[329294005,1718220661899,-500.0,0.00019178,2]
[329294006,1718220661926,-500.0,0.00019178,2]
[329294007,1718220661941,-500.0,0.00019178,2]
[329294008,1718220661954,-521.32686565,0.00019178,2]
[329294009,1718220661965,-500.0,0.00019178,2]
[329294010,1718220661978,-500.0,0.00019178,2]
[329294011,1718220661989,-500.0,0.00019178,2]
[329294012,1718220662000,-500.0,0.00019178,2]
[329294013,1718220662010,-328.97821228,0.00019178,2]
[329294014,1718220662020,-500.0,0.00019178,2]
[329294015,1718220662031,-500.0,0.00019178,2]
[329294016,1718220662041,-500.0,0.00019178,2]
[329294017,1718220662053,-500.0,0.00019178,2]
[329294018,1718220662063,-500.0,0.00019178,2]
[329294019,1718220662079,-500.0,0.00019178,2]
[329294020,1718220662091,-500.0,0.00019178,2]
[329294021,1718220662101,-500.0,0.00019178,2]
[329294022,1718220662112,-500.0,0.00019178,2]
[329294023,1718220662122,-500.0,0.00019178,2]
[329294024,1718220662132,-500.0,0.00019178,2]
[329294025,1718220662147,-547.61,0.00019178,2]
[329294026,1718220662158,-526.48,0.00019178,2]
[329294027,1718220662169,-500.0,0.00019178,2]
[329294028,1718220662181,-500.0,0.00019178,2]
[329294029,1718220662191,-500.0,0.00019178,2]
[329294030,1718220662202,-500.0,0.00019178,2]
[329294031,1718220662212,-500.0,0.00019178,2]
[329294032,1718220662223,-500.0,0.00019178,2]
[329294033,1718220662234,-500.0,0.00019178,2]
[329294034,1718220662246,-500.0,0.00019178,2]
[329294035,1718220662260,-500.0,0.00019178,2]
[329294036,1718220662272,-500.0,0.00019178,2]
[329294037,1718220662283,-500.0,0.00019178,2]
[329294038,1718220662294,-500.0,0.00019178,2]
[329294039,1718220662305,-500.0,0.00019178,2]
[329294040,1718220662318,-500.0,0.00019178,2]
[329294041,1718220662329,-500.0,0.00019178,2]
[329294042,1718220662340,-500.0,0.00019178,2]
[329294043,1718220662351,-500.0,0.00019178,2]
[329294044,1718220662362,-500.0,0.00019178,2]
[329294045,1718220662375,-500.0,0.00019178,2]
[329294046,1718220662388,-500.0,0.00019178,2]
[329294047,1718220662410,-615.45585789,0.00019178,2]
[329294048,1718220662423,-500.0,0.00019178,2]
[329294049,1718220662434,-500.0,0.00019178,2]
[329294050,1718220662446,-500.0,0.00019178,2]
[329294051,1718220662458,-500.0,0.00019178,2]
[329294052,1718220662470,-500.0,0.00019178,2]
[329294053,1718220662480,-450.0,0.00019178,2]
[329294054,1718220662491,-521.33,0.00019178,2]
[329294055,1718220662505,-670.62,0.00019178,2]
[329294056,1718220662517,-500.0,0.00019178,2]
[329294057,1718220662528,-773.41,0.00019178,2]
[329294058,1718220662539,-388.39547326,0.00019178,2]
[329294059,1718220662564,-570.81,0.00019178,2]
[329294060,1718220662587,-901.43,0.00019178,2]
[329294061,1718220662598,-500.0,0.00019178,2]
[329294062,1718220662613,-500.0,0.00019178,2]
[329294063,1718220662626,-576.55,0.00019178,2]
[329294064,1718220662645,-744.83,0.00019178,2]
[329294065,1718220662656,-1399.88,0.00019178,2]
[329294066,1718220662673,-711.69,0.00019178,2]
[329294067,1718220662686,-1144.53,0.00019178,2]
[329294068,1718220662703,-3420.82,0.00019178,2]
[329294069,1718220662714,-4199.95,0.00019178,2]
[329294070,1718220662724,-500.0,0.00019178,2]
[329294071,1718220662736,-750.65,0.00019178,2]
[329294072,1718220662752,-151.0,0.00019178,2]
[329294073,1718220662765,-584.03,0.00019178,2]
[329294074,1718220662776,-1030.83,0.00019178,2]
[329294075,1718220662787,-151.0,0.00019178,2]
[329294076,1718220662798,-151.0,0.00019178,2]
[329294077,1718220662809,-4482.52,0.00019178,2]
[329294078,1718220662821,-500.0,0.00019178,2]
[329294079,1718220662832,-1924.46,0.00019178,2]
[329294080,1718220662848,-151.0,0.00019178,2]
[329294081,1718220662862,-151.0,0.00019178,2]
[329294082,1718220662877,-2553.46,0.00019178,2]
[329294083,1718220662888,-151.0,0.00019178,2]
[329294084,1718220662925,-7018.01,0.00019178,2]
[329294085,1718220662935,-151.0,0.00019178,2]
[329294086,1718220662948,-319.47320251,0.00019178,2]
[329294087,1718220663079,-180.52679749,0.00019178,2]
[329294088,1718220663091,-299.09560693,0.00019178,2]
[329294089,1718220663101,-702.6,0.00019178,2]
[329294090,1718220663114,-821.16,0.00019178,2]
[329294091,1718220663126,-500.0,0.00019178,2]
[329294092,1718220663138,-500.0,0.00019178,2]
[329294093,1718220663153,-500.0,0.00019178,2]
[329294094,1718220663164,-5404.03,0.00019178,2]
[329294095,1718220663176,-500.0,0.00019178,2]
[329294096,1718220663187,-797.6,0.00019178,2]
[329294097,1718220663198,-511.04,0.00019178,2]
[329294098,1718220663211,-151.0,0.00019178,2]
[329294099,1718220663225,-1096.22,0.00019178,2]
[329294100,1718220663236,-198.342731,0.00019178,2]
[329294101,1718220663248,-151.0,0.00019178,2]
[329294102,1718220663261,-248.442194,0.00019178,2]
[329294103,1718220663273,-1703.96,0.00019178,2]
[329294104,1718220663284,-500.0,0.00019178,2]
[329294105,1718220663297,-744.68,0.00019178,2]
[329294106,1718220663308,-248.442194,0.00019178,2]
[329294107,1718220663321,-614.12,0.00019178,2]
[329294108,1718220663333,-1404.54,0.00019178,2]
[329294109,1718220663346,-151.0,0.00019178,2]
[329294110,1718220663357,-218.10599077,0.00019178,2]
[329294111,1718220663369,-377.21719827,0.00019178,2]
[329294112,1718220663380,-500.0,0.00019178,2]
[329294113,1718220663396,-581.24293027,0.00019178,2]
[329294114,1718220663413,-228.13317763,0.00019178,2]
[329294115,1718220663424,-151.0,0.00019178,2]
[329294116,1718220663436,-500.0,0.00019178,2]
[329294117,1718220663448,-200.0,0.00019178,2]
[329294118,1718220663461,-500.0,0.00019178,2]
[329294119,1718220663475,-200.0,0.00019178,2]
[329294120,1718220663488,-500.0,0.00019178,2]
[329294121,1718220663502,-200.0,0.00019178,2]
[329294122,1718220663515,-500.0,0.00019178,2]
[329294123,1718220663529,-151.0,0.00019178,2]
[329294124,1718220663541,-582.09,0.00019178,2]
[329294125,1718220663553,-186.088124,0.00019178,2]
[329294126,1718220663565,-153.0,0.00019189,2]
[329294127,1718220663578,-306.1163708,0.00019226,2]
[329294128,1718220663593,-1750.0,0.0001925,2]
[329294129,1718220663604,-499.0,0.0001925,2]
[329294130,1718220663615,-153.0,0.000193,2]
[329294131,1718220663626,-153.0,0.000193,2]
[329294132,1718220663637,-153.0,0.000193,2]
[329294133,1718220663660,-410.7646814,0.00019319,2]
[329294134,1718220663676,-151.0,0.00019357,2]
[329294135,1718220663688,-5439.08843716,0.00019369,13]
[329294136,1718220663707,-1078.23671621,0.00019369,13]
[329294137,1718220663720,-570.93269877,0.00019369,2]
[329294138,1718220664676,-331.6042179,0.00016438,2]
[329294139,1718220664692,-168.3957821,0.00016438,2]
[329294140,1718220664704,-500.0,0.00016438,2]
[329294141,1718220664717,-500.0,0.00016438,2]
[329294142,1718220664729,-500.0,0.00016438,2]
[329294143,1718220664741,-500.0,0.00016438,2]
[329294144,1718220664764,-500.0,0.00016438,2]
[329294145,1718220664792,-632.25604265,0.00016438,2]
[329294146,1718220664802,-500.0,0.00016438,2]
[329294147,1718220664814,-500.0,0.00016438,2]
[329294148,1718220664825,-500.0,0.00016712,2]
[329294149,1718220664840,-500.0,0.00016712,2]
[329294150,1718220664851,-500.0,0.00016712,2]
[329294151,1718220664863,-500.0,0.00016712,2]
[329294152,1718220664874,-500.0,0.00016712,2]
[329294153,1718220664884,-500.0,0.00016712,2]
[329294154,1718220664900,-500.0,0.00016986,2]
[329294155,1718220664932,-500.0,0.00016986,2]
[329294156,1718220664944,-500.0,0.00016986,2]
[329294157,1718220664956,-500.0,0.00016986,2]
[329294158,1718220664966,-500.0,0.00016986,2]
[329294159,1718220664977,-500.0,0.0001726,2]
[329294160,1718220664989,-500.0,0.0001726,2]
[329294161,1718220665002,-500.0,0.0001726,2]
[329294162,1718220665013,-500.0,0.0001726,2]
[329294163,1718220665025,-205.79,0.0001726,2]
[329294164,1718220665047,-500.0,0.00017534,2]
[329294165,1718220665063,-500.0,0.00017808,2]
[329294166,1718220665074,-500.0,0.00018082,2]
[329294167,1718220665096,-500.0,0.00018082,2]
[329294168,1718220665113,-500.0,0.00018356,2]
[329294169,1718220665136,-500.0,0.00018356,2]
[329294170,1718220665165,-849.77,0.0001863,2]
[329294171,1718220665182,-234.42,0.0001863,2]
[329294172,1718220665194,-500.0,0.0001863,2]
[329294173,1718220665208,-849.77,0.00018904,2]
[329294174,1718220665219,-593.16,0.00018904,2]
[329294175,1718220665232,-849.77,0.00019178,2]
[329294176,1718220665246,-14.11717743,0.00019369,2]
[329294177,1718220665266,-292.5693121,0.00019369,2]
[329294178,1718220665283,-292.5693121,0.00019369,2]
[329294179,1718220665294,-543.9712766,0.00019369,2]
[329294180,1718220665308,-292.5693121,0.00019369,2]
[329294181,1718220665319,-292.5693121,0.00019369,2]
[329294182,1718220665332,-292.5693121,0.00019369,2]
[329294183,1718220665344,-501.8488701,0.00019369,2]
[329294184,1718220665356,-292.5693121,0.00019369,2]
[329294185,1718220665378,-292.5693121,0.00019369,2]
[329294186,1718220665389,-292.5693121,0.00019369,2]
[329294187,1718220665409,-292.5693121,0.00019369,2]
[329294188,1718220665425,-292.5693121,0.00019369,2]
[329294189,1718220665443,-205.3823407,0.00019371,2]
[329294190,1718220665456,-205.3823407,0.00019371,2]
[329294191,1718220665470,-205.3823407,0.00019371,2]
[329294192,1718220665482,-205.3823407,0.00019371,2]
[329294193,1718220665494,-205.3823407,0.00019371,2]
[329294194,1718220665509,-205.3823407,0.00019371,2]
[329294195,1718220665521,-205.3823407,0.00019371,2]
[329294196,1718220665541,-205.3823407,0.00019371,2]
[329294197,1718220665552,-205.3823407,0.00019371,2]
[329294198,1718220665565,-205.3823407,0.00019371,2]
[329294199,1718220665576,-205.3823407,0.00019371,2]
[329294200,1718220665588,-203.2307341,0.00019371,2]
[329294201,1718220665599,-1920.35047016,0.00019437,2]
[329294202,1718220665614,-349.99996,0.00019437,2]
[329294203,1718220666134,-1040.99898,0.00019437,2]
[329294204,1718220666156,-1970.5714186,0.00019437,2]
[329294205,1718220666168,-500.0,0.00019449,2]
[329294206,1718220666183,-278.74261318,0.0001945,2]
[329294207,1718220666203,-282.32326129,0.0001945,2]
[329294208,1718220666214,-194.99346474,0.0001945,2]
[329294209,1718220666231,-309.87604956,0.0001945,2]
[329294210,1718220666242,-534.87830761,0.0001945,2]
[329294211,1718220666252,-515.35107108,0.0001945,2]
[329294212,1718220666265,-759.78913764,0.0001945,2]
[329294213,1718220666279,-613.53056814,0.0001945,2]
[329294214,1718220666293,-187.22194756,0.0001945,2]
[329294215,1718220666307,-190.36577265,0.0001945,2]
[329294216,1718220666319,-526.09322986,0.0001945,2]
[329294217,1718220666330,-10536.38828398,0.0001945,2]
[329294218,1718220666340,-859.85078426,0.0001945,2]
[329294219,1718220666354,-1500.63244989,0.0001945,2]
[329294220,1718220666365,-610.27791065,0.0001945,2]
[329294221,1718220666376,-151.0,0.0001945,2]
[329294222,1718220666387,-151.0,0.0001945,2]
[329294223,1718220666402,-500.0,0.00019451,2]
[329294224,1718220666412,-500.0,0.00019452,2]
[329294225,1718220666424,-500.0,0.00019452,2]
[329294226,1718220666435,-526.48,0.00019452,2]
[329294227,1718220666446,-500.0,0.00019452,2]
[329294228,1718220666456,-521.33,0.00019452,2]
[329294229,1718220666467,-670.62,0.00019452,2]
[329294230,1718220666478,-500.0,0.00019452,2]
[329294231,1718220666491,-773.41,0.00019452,2]
[329294232,1718220666502,-570.81,0.00019452,2]
[329294233,1718220666512,-901.43,0.00019452,2]
[329294234,1718220666523,-151.0,0.00019452,2]
[329294235,1718220666533,-500.0,0.00019452,2]
[329294236,1718220666544,-151.0,0.00019452,2]
[329294237,1718220666555,-151.0,0.00019452,2]
[329294238,1718220666566,-521.99579698,0.00019452,2]
[329294239,1718220666581,-576.55,0.00019452,2]
[329294240,1718220666592,-151.0,0.00019452,2]
[329294241,1718220666603,-151.0,0.00019452,2]
[329294242,1718220666614,-744.83,0.00019452,2]
[329294243,1718220666625,-1399.88,0.00019452,2]
[329294244,1718220666636,-711.69,0.00019452,2]
[329294245,1718220666651,-3420.82,0.00019452,2]
[329294246,1718220666663,-500.0,0.00019452,2]
[329294247,1718220666674,-750.65,0.00019452,2]
[329294248,1718220666685,-584.03,0.00019452,2]
[329294249,1718220666696,-1030.83,0.00019452,2]
[329294250,1718220666708,-4482.52,0.00019452,2]
[329294251,1718220666720,-500.0,0.00019452,2]
[329294252,1718220666731,-1924.46,0.00019452,2]
[329294253,1718220666743,-2553.46,0.00019452,2]
[329294254,1718220666756,-151.0,0.00019452,2]
[329294255,1718220666767,-7018.01,0.00019452,2]
[329294256,1718220666778,-151.0,0.00019452,2]
[329294257,1718220666798,-475.09424899,0.00019452,2]
[329294258,1718220666811,-702.6,0.00019452,2]
[329294259,1718220666822,-151.0,0.00019452,2]
[329294260,1718220666834,-821.16,0.00019452,2]
[329294261,1718220666845,-187.415915,0.00019452,2]
[329294262,1718220666855,-187.415915,0.00019452,2]
[329294263,1718220666868,-500.0,0.00019452,2]
[329294264,1718220666879,-500.0,0.00019452,2]
[329294265,1718220666896,-500.0,0.00019452,2]
[329294266,1718220666908,-5404.03,0.00019452,2]
[329294267,1718220666939,-279.62,0.00019452,2]
[329294268,1718220666950,-797.6,0.00019452,2]
[329294269,1718220666961,-511.04,0.00019452,2]
[329294270,1718220666972,-1096.22,0.00019452,2]
[329294271,1718220666985,-1703.96,0.00019452,2]
[329294272,1718220666997,-744.68,0.00019452,2]
[329294273,1718220667009,-614.12,0.00019452,2]
[329294274,1718220667020,-1404.54,0.00019452,2]
[329294275,1718220667033,-500.0,0.00019452,2]
[329294276,1718220667045,-582.09,0.00019452,2]
[329294277,1718220667056,-849.77,0.00019452,2]
[329294278,1718220667067,-151.0,0.00019571,2]
[329294279,1718220667080,-151.0,0.00019571,2]
[329294280,1718220667091,-263.3785513,0.00019578,2]
[329294281,1718220667101,-153.0,0.00019578,2]
[329294282,1718220667113,-153.0,0.00019578,2]
[329294283,1718220667125,-899.86893451,0.00019704,2]
[329294284,1718220667136,-500.0,0.00019725,2]
[329294285,1718220667151,-500.0,0.00019726,2]
[329294286,1718220667162,-500.0,0.00019726,2]
[329294287,1718220667173,-526.48,0.00019726,2]
[329294288,1718220667184,-521.33,0.00019726,2]
[329294289,1718220667195,-670.62,0.00019726,2]
[329294290,1718220667206,-500.0,0.00019726,2]
[329294291,1718220667218,-773.41,0.00019726,2]
[329294292,1718220667229,-570.81,0.00019726,2]
[329294293,1718220667241,-151.0,0.00019726,2]
[329294294,1718220667251,-901.43,0.00019726,2]
[329294295,1718220667263,-500.0,0.00019726,2]
[329294296,1718220667280,-576.55,0.00019726,2]
[329294297,1718220667297,-744.83,0.00019726,2]
[329294298,1718220667308,-1399.88,0.00019726,2]
[329294299,1718220667319,-711.69,0.00019726,2]
[329294300,1718220667330,-3420.82,0.00019726,2]
[329294301,1718220667340,-500.0,0.00019726,2]
[329294302,1718220667350,-750.65,0.00019726,2]
[329294303,1718220667361,-584.03,0.00019726,2]
[329294304,1718220667371,-1008.50724881,0.00019726,2]
[329294305,1718220667499,-22.32275119,0.00019726,2]
[329294306,1718220667511,-4482.52,0.00019726,2]
[329294307,1718220667523,-500.0,0.00019726,2]
[329294308,1718220667535,-1924.46,0.00019726,2]
[329294309,1718220667547,-407.48857605,0.00019726,2]
[329294310,1718220667564,-2145.97142395,0.00019726,2]
[329294311,1718220667575,-7018.01,0.00019726,2]
[329294312,1718220667588,-702.6,0.00019726,2]
[329294313,1718220667603,-821.16,0.00019726,2]
[329294314,1718220667618,-540.86,0.00019726,2]
[329294315,1718220667630,-500.0,0.00019726,2]
[329294316,1718220667649,-5404.03,0.00019726,2]
[329294317,1718220667663,-797.6,0.00019726,2]
[329294318,1718220667677,-511.04,0.00019726,2]
[329294319,1718220667690,-182.495754,0.00019726,2]
[329294320,1718220667700,-501.14419854,0.00019726,2]
[329294321,1718220732408,319.04528922,0.00010959,2]
[329294322,1718220732452,306.9812895,0.00010959,2]
[329294323,1718220732491,182.77342128,0.00010959,2]
[329294328,1718221068344,132.5658554,0.00010959,2]
[329294329,1718221068383,319.04528922,0.00010959,2]
[329294330,1718221068420,319.04528922,0.00010959,2]
[329294331,1718221068461,2845.23875565,0.00010959,2]
[329294332,1718221086311,3615.89518949,0.00010959,2]
[329294333,1718221106390,3615.89518949,0.00010959,2]
[329294334,1718221126539,3615.89518949,0.00010959,2]
[329294335,1718221144348,3442.98437602,0.00010959,2]
[329294336,1718221755377,-172.91081347,0.00010959,2]
[329294337,1718221763990,-350.6344179,0.00015274,2]
[329294338,1718221764100,-268.5861022,0.00015274,2]
[329294339,1718221764144,-82.0483157,0.00015417,2]
[329294340,1718221764193,-167.9516843,0.00015417,2]
[329294341,1718221764289,-42.61265147,0.00016338,2]
[329294342,1718221782681,0.70728167,0.00010959,2]
[329294343,1718221789322,-368.87108133,0.00010959,2]
[329294344,1718221789382,-262.25783734,0.00010959,2]
[329294345,1718221789440,-368.87108133,0.00010959,2]
[329294457,1718221839894,-2615.18790782,0.00010959,2]
[329294459,1718221839908,-114.67262071,0.00016338,2]
[329294463,1718221839921,-674.9017009,0.00016338,2]
[329294467,1718221839941,-300.0,0.00016435,2]
[329294469,1718221839956,-300.0,0.00016435,2]
[329294472,1718221839975,-155.66688387,0.00016436,2]
[329294474,1718221840002,-683.79571513,0.00016436,2]
[329294476,1718221840026,-659.64623615,0.00016436,2]
[329294478,1718221840039,-157.64438498,0.00016436,2]
[329294479,1718221840065,-1343.17538437,0.00016436,2]
[329294480,1718221840080,-303.29332234,0.00016436,2]
[329294482,1718221840095,-2057.52871167,0.00016437,2]
[329294484,1718221840130,-500.0,0.00016438,2]
[329294486,1718221840146,-500.0,0.00016438,2]
[329294488,1718221840168,-500.0,0.00016438,2]
[329294492,1718221840206,-500.0,0.00016438,2]
[329294498,1718221840242,-500.0,0.00016438,2]
[329294501,1718221840256,-500.0,0.00016438,2]
[329294506,1718221840271,-500.0,0.00016438,2]
[329294510,1718221840293,-500.0,0.00016438,2]
[329294514,1718221840309,-500.0,0.00016438,2]